[Event "GER-ch Youth ODJM 2019"]
[Site "Willingen"]
[Date "2019.06.13"]
[Round "7.15"]
[White "Reinecke, Katharina"]
[Black "Beesk, Kevin"]
[Result "0-1"]
[ECO "A56"]
[WhiteElo "1846"]
[BlackElo "1935"]
[Annotator "NA"]
[PlyCount "51"]
[EventDate "2019.06.07"]
[EventType "swiss"]
[EventRounds "9"]
[EventCountry "GER"]
[SourceTitle "playchess.com"]
[Source "ChessBase"]
[SourceQuality "1"]
[TimeControl "40/5400+30:1800+30"]

1. d4 {[%emt 0:00:00]} Nf6 {[%emt 0:00:00]} 2. c4 {[%emt 0:00:00]} c5 {[%emt 0:00:00]} 3. Nf3 {[%emt 0:00:00]} cxd4 {[%emt 0:00:00]} 4. Nxd4 {[%emt 0:00:00]} b6 {[%emt 0:00:00]} 5. Nc3 {[%emt 0:07:33]} Bb7 {[%emt 0:02:35]} 6. Qc2 {[%emt 0:04:27]} e6 {[%emt 0:06:55]} 7. e4 {[%emt 0:07:40]} d6 {[%emt 0:00:35]} 8. Be2 {[%emt 0:05:03]} a6 {[%emt 0:00:34]} 9. O-O {[%emt 0:01:11]} Nbd7 {[%emt 0:00:10]} 10. f4 {[%emt 0:05:16]} Rc8 {[%emt 0:02:11]} 11. b3 {[%emt 0:02:08]} Qc7 {[%emt 0:02:12]} 12. Bb2 {[%emt 0:04:34]} b5 {[%emt 0:14:21]} 13. Kh1 {[%emt 0:31:41]} b4 {[%emt 0:02:04]} 14. Nd1 {[%emt 0:01:12]} Bxe4 {[%emt 0:04:30]} 15. Qd2 {[%emt 0:01:18]} Qb7 {[%emt 0:02:36]} 16. Ne3 {[%emt 0:01:06]} h5 {[%emt 0:04:39]} 17. Nf3 {[%emt 0:08:24]} h4 {[%emt 0:02:23]} 18. f5 {[%emt 0:06:48]} h3 {[%emt 0:05:18]} 19. fxe6 {[%emt 0:01:10]} hxg2+ {[%emt 0:00:52]} 20. Nxg2 {[%emt 0:01:09]} fxe6 {[%emt 0:00:11]} 21. Qf4 {[%emt 0:05:59]} Rc5 {[%emt 0:02:55]} 22. Rae1 {[%emt 0:01:34]} Rch5 {[%emt 0:02:29]} 23. Bd1 {[%emt 0:02:17]} e5 {[%emt 0:02:26]} 24. Rxe4 {[%emt 0:00:56]} Qxe4 {[%emt 0:01:45]} 25. Qd2 {[%emt 0:00:28]} Qh7 {[%emt 0:04:09]} 26. Ng1 {normal} 0-1

[Event "GER-ch Youth ODJM 2019"]
[Site "Willingen"]
[Date "2019.06.13"]
[Round "7.16"]
[White "Mainka, Alwin"]
[Black "Hofmann, Lorenz"]
[Result "1/2-1/2"]
[ECO "C70"]
[WhiteElo "1833"]
[BlackElo "2002"]
[Annotator "NA"]
[PlyCount "48"]
[EventDate "2019.06.07"]
[EventType "swiss"]
[EventRounds "9"]
[EventCountry "GER"]
[SourceTitle "playchess.com"]
[Source "ChessBase"]
[SourceQuality "1"]
[TimeControl "40/5400+30:1800+30"]

1. e4 {[%emt 0:00:00]} e5 {[%emt 0:00:00]} 2. Nf3 {[%emt 0:00:00]} Nc6 {[%emt 0:00:00]} 3. Bb5 {[%emt 0:00:00]} a6 {[%emt 0:00:00]} 4. Ba4 {[%emt 0:00:00]} b5 {[%emt 0:00:00]} 5. Bb3 {[%emt 0:00:05]} d6 {[%emt 0:00:00]} 6. O-O {[%emt 0:00:10]} Bg4 {[%emt 0:00:35]} 7. c3 {[%emt 0:00:31]} Nf6 {[%emt 0:16:44]} 8. Re1 {[%emt 0:05:37]} Be7 {[%emt 0:03:26]} 9. h3 {[%emt 0:02:43]} Bh5 {[%emt 0:01:11]} 10. d3 {[%emt 0:00:33]} O-O {[%emt 0:02:54]} 11. Nbd2 {[%emt 0:01:50]} Qd7 {[%emt 0:05:28]} 12. Nf1 {[%emt 0:09:55]} Kh8 {[%emt 0:03:34]} 13. Ng3 {[%emt 0:03:54]} Bg6 {[%emt 0:00:32]} 14. d4 {[%emt 0:02:29]} exd4 {[%emt 0:09:19]} 15. cxd4 {[%emt 0:00:10]} Rad8 {[%emt 0:12:52]} 16. d5 {[%emt 0:10:59]} Nb8 {[%emt 0:10:22]} 17. Nd4 {[%emt 0:07:09]} Ng8 {[%emt 0:02:38]} 18. Be3 {[%emt 0:09:34]} Bf6 {[%emt 0:04:14]} 19. Rc1 {[%emt 0:00:26]} Ne7 {[%emt 0:01:11]} 20. Qc2 {[%emt 0:07:28]} Bxd4 {[%emt 0:01:25]} 21. Bxd4 {[%emt 0:00:16]} c5 {[%emt 0:00:07]} 22. dxc6 {[%emt 0:01:26]} Nbxc6 {[%emt 0:00:19]} 23. Qc3 {[%emt 0:01:55]} Nxd4 {[%emt 0:00:51]} 24. Qxd4 {[%emt 0:00:11]} Rc8 {[%emt 0:07:58] normal} 1/2-1/2

[Event "GER-ch Youth ODJM 2019"]
[Site "Willingen"]
[Date "2019.06.14"]
[Round "8.2"]
[White "Zhang, Yibo"]
[Black "Fink, Anton"]
[Result "0-1"]
[ECO "C54"]
[WhiteElo "1302"]
[BlackElo "1478"]
[Annotator "NA"]
[PlyCount "108"]
[EventDate "2019.06.07"]
[EventType "swiss"]
[EventRounds "9"]
[EventCountry "GER"]
[SourceTitle "playchess.com"]
[Source "ChessBase"]
[SourceQuality "1"]
[TimeControl "40/5400+30:1800+30"]

1. e4 {[%emt 0:00:00]} e5 {[%emt 0:00:00]} 2. Nf3 {[%emt 0:00:00]} Nc6 {[%emt 0:00:00]} 3. Bc4 {[%emt 0:00:00]} Bc5 {[%emt 0:00:00]} 4. c3 {[%emt 0:00:00]} Nf6 {[%emt 0:00:00]} 5. d3 {[%emt 0:00:19]} d6 {[%emt 0:00:00]} 6. Be3 {[%emt 0:00:18]} Bb6 {[%emt 0:01:49]} 7. O-O {[%emt 0:00:28]} Bg4 {[%emt 0:01:24]} 8. Nbd2 {[%emt 0:00:19]} h6 {[%emt 0:00:27]} 9. Bb3 {[%emt 0:00:30]} O-O {[%emt 0:01:26]} 10. Re1 {[%emt 0:00:48]} Re8 {[%emt 0:02:39]} 11. Nf1 {[%emt 0:01:07]} d5 {[%emt 0:02:48]} 12. exd5 {[%emt 0:00:43]} Nxd5 {[%emt 0:00:15]} 13. Ng3 {[%emt 0:01:15]} Nxe3 {[%emt 0:11:08]} 14. fxe3 {[%emt 0:02:10]} Qd7 {[%emt 0:02:32]} 15. Bc2 {[%emt 0:02:16]} Rad8 {[%emt 0:03:27]} 16. Qe2 {[%emt 0:01:40]} Kh8 {[%emt 0:05:57]} 17. h3 {[%emt 0:01:50]} Bxf3 {[%emt 0:07:01]} 18. Qxf3 {[%emt 0:01:50]} Qe7 {[%emt 0:06:30]} 19. Qe4 {[%emt 0:01:30]} g6 {[%emt 0:03:26]} 20. Qf3 {[%emt 0:00:42]} Kg7 {[%emt 0:03:31]} 21. Qg4 {[%emt 0:00:48]} Qg5 {[%emt 0:01:17]} 22. Qf3 {[%emt 0:00:53]} f5 {[%emt 0:02:56]} 23. Rad1 {[%emt 0:01:18]} e4 {[%emt 0:05:20]} 24. dxe4 {[%emt 0:01:57]} Rxd1 {[%emt 0:02:54]} 25. Bxd1 {[%emt 0:00:34]} Ne5 {[%emt 0:01:23]} 26. Qf2 {[%emt 0:05:14]} Nd3 {[%emt 0:01:26]} 27. Qe2 {[%emt 0:01:15]} Qxg3 {[%emt 0:00:45]} 28. Rf1 {[%emt 0:00:47]} Qxe3+ {[%emt 0:01:22]} 29. Qxe3 {[%emt 0:00:45]} Bxe3+ {[%emt 0:00:01]} 30. Kh2 {[%emt 0:00:22]} fxe4 {[%emt 0:00:36]} 31. b3 Rf8 {[%emt 0:01:08]} 32. Rh1 {[%emt 0:01:05]} Nf2 {[%emt 0:01:54]} 33. Rf1 {[%emt 0:00:41]} Ng4+ {[%emt 0:01:05]} 34. Bxg4 {[%emt 0:00:40]} Rxf1 {[%emt 0:00:02]} 35. Bc8 {[%emt 0:00:39]} Bg1+ {[%emt 0:01:10]} 36. Kg3 {[%emt 0:00:28]} e3 {[%emt 0:01:07]} 37. Bg4 {[%emt 0:00:16]} Rf2 {[%emt 0:01:38]} 38. a4 {[%emt 0:00:20]} e2 {[%emt 0:00:23]} 39. Bxe2 {[%emt 0:00:08]} Rxe2 {[%emt 0:00:05]} 40. Kf3 {[%emt 0:00:22]} Re3+ {[%emt 0:00:25]} 41. Kf4 {[%emt 0:31:53]} Rxc3 {[%emt 0:30:19]} 42. Ke5 {[%emt 0:00:19]} Rxb3 43. Ke6 {[%emt 0:00:35]} c5 {[%emt 0:00:26]} 44. Kd5 {[%emt 0:00:27]} Rb4 {[%emt 0:00:21]} 45. a5 {[%emt 0:00:22]} c4 {[%emt 0:00:13]} 46. Ke4 {[%emt 0:02:54]} Rb1 {[%emt 0:00:00]} 47. Kf3 {[%emt 0:00:30]} c3 {[%emt 0:00:07]} 48. Ke4 {[%emt 0:00:30]} c2 {[%emt 0:00:30]} 49. Ke5 {[%emt 0:00:30]} c1=Q {[%emt 0:00:30]} 50. Ke4 {[%emt 0:00:27]} Qc5 {[%emt 0:00:03]} 51. Kd3 {[%emt 0:00:30]} Rb4 {[%emt 0:00:15]} 52. Ke2 {[%emt 0:00:40]} Qe3+ {[%emt 0:00:12]} 53. Kd1 {[%emt 0:00:21]} Rb2 {[%emt 0:00:26]} 54. g3 {[%emt 0:00:30]} Qd2# {[%emt 0:00:05] normal} 0-1

[Event "GER-ch Youth ODJM 2019"]
[Site "Willingen"]
[Date "2019.06.14"]
[Round "8.3"]
[White "Mylke, Sandy-Michelle"]
[Black "Foos, Vanessa"]
[Result "0-1"]
[ECO "D05"]
[WhiteElo "1238"]
[BlackElo "1207"]
[Annotator "NA"]
[PlyCount "136"]
[EventDate "2019.06.07"]
[EventType "swiss"]
[EventRounds "9"]
[EventCountry "GER"]
[SourceTitle "playchess.com"]
[Source "ChessBase"]
[SourceQuality "1"]
[TimeControl "40/5400+30:1800+30"]

1. d4 {[%emt 0:00:00]} d5 {[%emt 0:00:00]} 2. e3 {[%emt 0:00:32]} Nf6 {[%emt 0:00:29]} 3. Bd3 {[%emt 0:00:56]} e6 {[%emt 0:03:46]} 4. Nd2 {[%emt 0:02:59]} Bd6 {[%emt 0:00:52]} 5. f4 {[%emt 0:00:59]} Nc6 {[%emt 0:00:54]} 6. Ngf3 {[%emt 0:00:35]} b6 {[%emt 0:03:31]} 7. c3 {[%emt 0:03:27]} Bb7 {[%emt 0:04:11]} 8. O-O {[%emt 0:02:12]} h6 {[%emt 0:07:29]} 9. Ne5 {[%emt 0:03:43]} g5 {[%emt 0:04:31]} 10. Nxc6 {[%emt 0:08:07]} Bxc6 {[%emt 0:00:16]} 11. fxg5 {[%emt 0:01:11]} hxg5 {[%emt 0:06:19]} 12. Nf3 {[%emt 0:00:44]} Ne4 {[%emt 0:03:34]} 13. Ne5 {[%emt 0:04:05]} Bxe5 {[%emt 0:01:45]} 14. dxe5 {[%emt 0:00:22]} Nc5 {[%emt 0:02:27]} 15. Qf3 {[%emt 0:03:09]} Qe7 {[%emt 0:02:13]} 16. Bc2 {[%emt 0:00:40]} Nd7 {[%emt 0:04:13]} 17. Qg3 {[%emt 0:02:09]} O-O-O {[%emt 0:02:14]} 18. e4 {[%emt 0:00:32]} Rdg8 {[%emt 0:03:28]} 19. exd5 {[%emt 0:03:09]} Bxd5 {[%emt 0:02:26]} 20. Be3 {[%emt 0:05:31]} Rh5 {[%emt 0:03:35]} 21. Bf4 {[%emt 0:12:52]} Qc5+ {[%emt 0:03:54]} 22. Be3 {[%emt 0:00:49]} Qe7 {[%emt 0:04:05]} 23. b4 {[%emt 0:03:22]} g4 {[%emt 0:01:54]} 24. Bf4 {[%emt 0:01:10]} c5 {[%emt 0:05:43]} 25. a3 {[%emt 0:02:14]} f5 {[%emt 0:02:59]} 26. exf6 {[%emt 0:02:57]} Nxf6 {[%emt 0:01:38]} 27. Bd6 {[%emt 0:01:43]} Qd8 {[%emt 0:06:09]} 28. bxc5 {[%emt 0:02:07]} bxc5 {[%emt 0:00:48]} 29. Bxc5 {[%emt 0:01:08]} Bc4 {[%emt 0:01:01]} 30. Rad1 {[%emt 0:01:36]} Nd7 {[%emt 0:11:01]} 31. Rf7 {[%emt 0:02:10]} Rxc5 {[%emt 0:01:22]} 32. Qd6 {[%emt 0:00:58]} Rd5 {[%emt 0:00:47]} 33. Qc6+ {[%emt 0:02:43]} Qc7 {[%emt 0:00:33]} 34. Qa8+ {[%emt 0:06:17]} Qb8 {[%emt 0:00:19]} 35. Qc6+ {[%emt 0:01:58]} Qc7 {[%emt 0:02:23]} 36. Qxc7+ {[%emt 0:01:13]} Kxc7 {[%emt 0:00:12]} 37. Re1 {[%emt 0:00:14]} Rd2 {[%emt 0:01:42]} 38. Ba4 {[%emt 0:02:02]} Rf8 {[%emt 0:00:29]} 39. Rg7 {[%emt 0:01:32]} e5 {[%emt 0:01:20]} 40. Rxg4 {[%emt 0:00:57]} Nb6 {[%emt 0:00:21]} 41. h4 {[%emt 0:30:32]} Rf4 {[%emt 0:32:10]} 42. Rxf4 {[%emt 0:01:29]} exf4 {[%emt 0:00:18]} 43. h5 {[%emt 0:00:34]} Rd6 {[%emt 0:01:30]} 44. Be8 {[%emt 0:00:41]} Rh6 {[%emt 0:00:16]} 45. Kh2 {[%emt 0:01:14]} Nd5 {[%emt 0:00:00]} 46. Kh3 {[%emt 0:00:00]} Nf6 {[%emt 0:00:00]} 47. Kh4 {[%emt 0:00:00]} Nxe8 {[%emt 0:00:00]} 48. Rxe8 {[%emt 0:00:00]} Kd7 {[%emt 0:00:00]} 49. Rf8 {[%emt 0:00:00]} Be2 {[%emt 0:00:00]} 50. Rf5 {[%emt 0:00:00]} Ke6 {[%emt 0:00:00]} 51. Ra5 {[%emt 0:00:00]} a6 {[%emt 0:00:00]} 52. a4 {[%emt 0:00:00]} Kf6 {[%emt 0:00:00]} 53. Rc5 {[%emt 0:00:00]} Kg7 {[%emt 0:00:00]} 54. Rg5+ {[%emt 0:00:00]} Kf6 {[%emt 0:00:00]} 55. c4 {[%emt 0:00:00]} Bxc4 {[%emt 0:00:00]} 56. Rc5 {[%emt 0:00:00]} Bf7 {[%emt 0:00:00]} 57. a5 {[%emt 0:00:00]} Rxh5+ {[%emt 0:00:00]} 58. Rxh5 {[%emt 0:00:00]} Bxh5 {[%emt 0:00:00]} 59. Kxh5 {[%emt 0:00:00]} Kf5 {[%emt 0:00:00]} 60. Kh4 {[%emt 0:00:00]} f3 {[%emt 0:00:00]} 61. gxf3 {[%emt 0:00:00]} Kf4 {[%emt 0:00:00]} 62. Kh5 {[%emt 0:00:00]} Kxf3 {[%emt 0:00:00]} 63. Kg5 {[%emt 0:00:00]} Ke4 {[%emt 0:00:00]} 64. Kf6 {[%emt 0:00:00]} Kd5 {[%emt 0:00:00]} 65. Ke7 {[%emt 0:00:00]} Kc6 {[%emt 0:00:00]} 66. Kd8 {[%emt 0:00:06]} Kb5 {[%emt 0:00:00]} 67. Kc7 {[%emt 0:00:09]} Kxa5 {[%emt 0:00:00]} 68. Kc6 {[%emt 0:00:17]} Kb4 {[%emt 0:00:00] normal} 0-1

[Event "GER-ch Youth ODJM 2019"]
[Site "Willingen"]
[Date "2019.06.14"]
[Round "8.4"]
[White "Malinowsky, Celina"]
[Black "Sinka, Silas"]
[Result "0-1"]
[ECO "C01"]
[WhiteElo "1109"]
[BlackElo "1292"]
[Annotator "NA"]
[PlyCount "118"]
[EventDate "2019.06.07"]
[EventType "swiss"]
[EventRounds "9"]
[EventCountry "GER"]
[SourceTitle "playchess.com"]
[Source "ChessBase"]
[SourceQuality "1"]
[TimeControl "40/5400+30:1800+30"]

1. e4 {[%emt 0:00:00]} e6 {[%emt 0:00:00]} 2. d4 {[%emt 0:00:00]} d5 {[%emt 0:00:00]} 3. exd5 {[%emt 0:00:23]} exd5 {[%emt 0:00:00]} 4. Bd3 {[%emt 0:00:33]} Bd6 {[%emt 0:00:18]} 5. Nf3 {[%emt 0:01:56]} Nf6 {[%emt 0:00:06]} 6. O-O {[%emt 0:01:31]} O-O {[%emt 0:00:04]} 7. Re1 {[%emt 0:01:50]} Nbd7 {[%emt 0:01:32]} 8. Bg5 {[%emt 0:02:33]} c5 {[%emt 0:01:08]} 9. dxc5 {[%emt 0:02:28]} Bxc5 {[%emt 0:00:24]} 10. Nbd2 {[%emt 0:02:25]} Qb6 {[%emt 0:00:31]} 11. Re2 Qxb2 {[%emt 0:02:29]} 12. Nb3 {[%emt 0:01:50]} Qa3 {[%emt 0:00:38]} 13. Nxc5 {[%emt 0:02:44]} Qxc5 {[%emt 0:00:31]} 14. Ne5 {[%emt 0:01:32]} Nxe5 {[%emt 0:01:16]} 15. Bxf6 {[%emt 0:01:52]} Nxd3 {[%emt 0:00:38]} 16. Qxd3 {[%emt 0:01:01]} gxf6 {[%emt 0:00:17]} 17. Rae1 {[%emt 0:01:48]} Qc4 {[%emt 0:01:25]} 18. Qe3 {[%emt 0:01:18]} Qe4 {[%emt 0:01:57]} 19. Qh6 {[%emt 0:01:39]} Qg6 {[%emt 0:00:26]} 20. Qd2 {[%emt 0:00:51]} Bh3 {[%emt 0:01:12]} 21. g3 {[%emt 0:00:08]} Be6 {[%emt 0:02:32]} 22. Qb4 {[%emt 0:06:43]} b6 {[%emt 0:02:37]} 23. Rd2 {[%emt 0:02:07]} Rfe8 {[%emt 0:02:12]} 24. Qc3 {[%emt 0:01:39]} Rac8 {[%emt 0:04:24]} 25. Qb2 {[%emt 0:01:28]} Bh3 {[%emt 0:01:28]} 26. Rxe8+ {[%emt 0:01:23]} Rxe8 {[%emt 0:00:09]} 27. f3 {[%emt 0:02:36]} Qf5 {[%emt 0:00:44]} 28. Qb3 {[%emt 0:02:16]} Re1+ {[%emt 0:00:27]} 29. Kf2 {[%emt 0:00:26]} Rf1+ {[%emt 0:00:07]} 30. Ke2 {[%emt 0:00:56]} Qe5+ {[%emt 0:00:06]} 31. Qe3 {[%emt 0:00:49]} Re1+ {[%emt 0:00:05]} 32. Kxe1 {[%emt 0:00:27]} Qxe3+ {[%emt 0:00:04]} 33. Re2 {[%emt 0:00:16]} Qg1+ {[%emt 0:00:43]} 34. Kd2 {[%emt 0:00:12]} Bf1 {[%emt 0:00:41]} 35. Re7 {[%emt 0:01:13]} Qxh2+ {[%emt 0:00:35]} 36. Kc3 {[%emt 0:00:18]} Qxg3 {[%emt 0:00:29]} 37. Re3 {[%emt 0:00:22]} Qf4 {[%emt 0:00:29]} 38. Re7 {[%emt 0:00:29]} Qxf3+ {[%emt 0:00:10]} 39. Kd4 {[%emt 0:00:24]} Qd1+ {[%emt 0:01:09]} 40. Kc3 {[%emt 0:00:14]} a5 {[%emt 0:00:34]} 41. a4 {[%emt 0:30:46]} d4+ {[%emt 0:30:35]} 42. Kb2 {[%emt 0:00:21]} Qd2 {[%emt 0:00:31]} 43. Rc7 {[%emt 0:00:13]} Qb4+ {[%emt 0:00:12]} 44. Kc1 {[%emt 0:00:14]} Qxa4 {[%emt 0:00:17]} 45. Rc8+ {[%emt 0:00:12]} Kg7 {[%emt 0:00:11]} 46. Rc7 {[%emt 0:00:10]} Qa1+ {[%emt 0:00:57]} 47. Kd2 {[%emt 0:00:07]} Qc3+ {[%emt 0:00:11]} 48. Rxc3 {[%emt 0:00:16]} dxc3+ {[%emt 0:00:05]} 49. Kxc3 {[%emt 0:00:05]} h5 {[%emt 0:00:06]} 50. Kd2 {[%emt 0:00:11]} h4 {[%emt 0:00:22]} 51. Ke1 {[%emt 0:00:06]} a4 {[%emt 0:00:15]} 52. Kxf1 {[%emt 0:00:08]} a3 {[%emt 0:00:04]} 53. Kg2 {[%emt 0:00:10]} a2 {[%emt 0:00:10]} 54. Kh3 {[%emt 0:00:02]} a1=Q {[%emt 0:00:10]} 55. Kxh4 {[%emt 0:00:04]} Qg1 {[%emt 0:00:14]} 56. c4 {[%emt 0:00:08]} Kg6 {[%emt 0:00:09]} 57. c5 {[%emt 0:00:11]} Kf5 {[%emt 0:00:11]} 58. Kh3 {[%emt 0:00:14]} Kf4 {[%emt 0:00:38]} 59. cxb6 {[%emt 0:00:14]} Qg3# {normal} 0-1

[Event "GER-ch Youth ODJM 2019"]
[Site "Willingen"]
[Date "2019.06.14"]
[Round "8.5"]
[White "Navarro Jahnke, Eric"]
[Black "Rudolph, Alexander"]
[Result "1-0"]
[ECO "D05"]
[WhiteElo "1259"]
[BlackElo "1414"]
[Annotator "NA"]
[PlyCount "33"]
[EventDate "2019.06.07"]
[EventType "swiss"]
[EventRounds "9"]
[EventCountry "GER"]
[SourceTitle "playchess.com"]
[Source "ChessBase"]
[SourceQuality "1"]
[TimeControl "40/5400+30:1800+30"]

1. d4 {[%emt 0:00:00]} d5 {[%emt 0:00:00]} 2. e3 {[%emt 0:00:00]} Nf6 {[%emt 0:00:00]} 3. Bd3 {[%emt 0:00:00]} c5 {[%emt 0:00:19]} 4. c3 {[%emt 0:00:01]} e6 {[%emt 0:00:27]} 5. Nd2 {[%emt 0:00:23]} Bd6 {[%emt 0:00:09]} 6. f4 {[%emt 0:00:08]} Nc6 {[%emt 0:00:35]} 7. Ngf3 {[%emt 0:00:14]} b6 {[%emt 0:00:34]} 8. Ne5 {[%emt 0:00:30]} Bb7 {[%emt 0:00:31]} 9. O-O {[%emt 0:00:14]} c4 {[%emt 0:00:20]} 10. Bc2 O-O {[%emt 0:01:52]} 11. Rf3 {[%emt 0:00:42]} Nd7 {[%emt 0:00:38]} 12. Rg3 {[%emt 0:01:33]} f5 {[%emt 0:02:53]} 13. Qh5 {[%emt 0:02:38]} Nf6 {[%emt 0:03:32]} 14. Qh6 {[%emt 0:02:05]} Qe7 {[%emt 0:03:06]} 15. Ndf3 {[%emt 0:02:41]} Kh8 {[%emt 0:01:14]} 16. Ng6+ {[%emt 0:01:29]} Kg8 {[%emt 0:08:12]} 17. Nxe7+ {[%emt 0:00:04] normal} 1-0

[Event "GER-ch Youth ODJM 2019"]
[Site "Willingen"]
[Date "2019.06.14"]
[Round "8.6"]
[White "Grimm, Nicola Marie"]
[Black "Apel, Linus"]
[Result "0-1"]
[ECO "A45"]
[WhiteElo "1459"]
[BlackElo "1410"]
[Annotator "NA"]
[PlyCount "50"]
[EventDate "2019.06.07"]
[EventType "swiss"]
[EventRounds "9"]
[EventCountry "GER"]
[SourceTitle "playchess.com"]
[Source "ChessBase"]
[SourceQuality "1"]
[TimeControl "40/5400+30:1800+30"]

1. d4 {[%emt 0:00:00]} Nf6 {[%emt 0:00:04]} 2. Bf4 {[%emt 0:00:00]} g6 {[%emt 0:00:25]} 3. e3 {[%emt 0:00:00]} Bg7 {[%emt 0:00:25]} 4. c3 {[%emt 0:01:01]} O-O {[%emt 0:00:24]} 5. Be2 {[%emt 0:00:33]} d6 {[%emt 0:00:07]} 6. Nd2 {[%emt 0:01:49]} Nbd7 {[%emt 0:00:48]} 7. h4 {[%emt 0:01:35]} e5 {[%emt 0:12:07]} 8. Bg5 {[%emt 0:02:47]} h6 {[%emt 0:06:00]} 9. Bxf6 {[%emt 0:00:21]} Nxf6 {[%emt 0:00:21]} 10. g4 {[%emt 0:01:41]} Nd5 {[%emt 0:02:55]} 11. h5 {[%emt 0:04:53]} g5 {[%emt 0:00:32]} 12. Qb3 {[%emt 0:01:59]} c6 {[%emt 0:08:49]} 13. dxe5 {[%emt 0:02:46]} dxe5 {[%emt 0:03:12]} 14. O-O-O {[%emt 0:00:54]} Qc7 {[%emt 0:01:08]} 15. Ne4 {[%emt 0:01:12]} b6 {[%emt 0:03:04]} 16. Nh3 {[%emt 0:00:43]} Qe7 {[%emt 0:10:43]} 17. Qa4 {[%emt 0:04:43]} b5 {[%emt 0:02:27]} 18. Qb3 {[%emt 0:00:56]} Be6 {[%emt 0:02:07]} 19. Qc2 {[%emt 0:01:23]} a5 {[%emt 0:05:47]} 20. a3 {[%emt 0:01:05]} b4 {[%emt 0:03:01]} 21. axb4 {[%emt 0:00:33]} axb4 {[%emt 0:00:38]} 22. Kd2 {[%emt 0:00:17]} bxc3+ {[%emt 0:01:59]} 23. Nxc3 {[%emt 0:00:24]} Nxc3 {[%emt 0:09:18]} 24. Qxc3 {[%emt 0:00:55]} e4 {[%emt 0:00:39]} 25. Qxc6 {[%emt 0:00:23]} Qb4+ {[%emt 0:00:23] normal} 0-1

[Event "GER-ch Youth ODJM 2019"]
[Site "Willingen"]
[Date "2019.06.14"]
[Round "8.7"]
[White "Diegel, Jonas"]
[Black "Werner, Tom"]
[Result "1-0"]
[ECO "E12"]
[WhiteElo "1787"]
[BlackElo "1772"]
[Annotator "NA"]
[PlyCount "67"]
[EventDate "2019.06.07"]
[EventType "swiss"]
[EventRounds "9"]
[EventCountry "GER"]
[SourceTitle "playchess.com"]
[Source "ChessBase"]
[SourceQuality "1"]
[TimeControl "40/5400+30:1800+30"]

1. d4 {[%emt 0:00:00]} Nf6 {[%emt 0:00:00]} 2. Nf3 {[%emt 0:00:00]} b6 {[%emt 0:00:00]} 3. c4 {[%emt 0:00:00]} e6 {[%emt 0:00:00]} 4. Bg5 {[%emt 0:00:40]} Be7 {[%emt 0:00:00]} 5. Nc3 {[%emt 0:00:05]} Bb7 {[%emt 0:00:01]} 6. e3 {[%emt 0:00:16]} O-O {[%emt 0:00:17]} 7. Bd3 {[%emt 0:01:56]} h6 {[%emt 0:02:13]} 8. Bh4 {[%emt 0:00:54]} c5 {[%emt 0:00:21]} 9. O-O {[%emt 0:00:31]} Nc6 {[%emt 0:01:05]} 10. a3 {[%emt 0:01:00]} d6 {[%emt 0:02:50]} 11. Qe2 Rc8 {[%emt 0:07:28]} 12. Rfd1 {[%emt 0:01:57]} Nh5 {[%emt 0:02:50]} 13. Bxe7 {[%emt 0:01:06]} Qxe7 {[%emt 0:01:09]} 14. d5 {[%emt 0:02:17]} Nb8 {[%emt 0:04:30]} 15. Rd2 {[%emt 0:05:54]} e5 {[%emt 0:05:36]} 16. Bf5 {[%emt 0:00:32]} Rce8 {[%emt 0:02:18]} 17. Kh1 {[%emt 0:13:05]} g6 {[%emt 0:04:26]} 18. Bc2 {[%emt 0:02:35]} Bc8 {[%emt 0:05:24]} 19. Rg1 {[%emt 0:01:35]} Ng7 {[%emt 0:04:35]} 20. g4 {[%emt 0:03:45]} Kh7 {[%emt 0:09:22]} 21. Rdd1 {[%emt 0:03:23]} f5 {[%emt 0:03:56]} 22. gxf5 {[%emt 0:00:37]} Bxf5 {[%emt 0:01:39]} 23. Ne4 {[%emt 0:01:51]} Nd7 {[%emt 0:12:39]} 24. Neg5+ {[%emt 0:05:58]} hxg5 {[%emt 0:04:45]} 25. Nxg5+ {[%emt 0:01:28]} Kh6 {[%emt 0:03:36]} 26. e4 {[%emt 0:00:34]} Rf6 {[%emt 0:03:43]} 27. Qe3 {[%emt 0:01:30]} Nh5 {[%emt 0:02:15]} 28. Ne6+ {[%emt 0:02:39]} Kh7 {[%emt 0:00:35]} 29. exf5 {[%emt 0:00:28]} gxf5 {[%emt 0:02:17]} 30. Qg5 {[%emt 0:03:21]} Qf7 {[%emt 0:00:39]} 31. Qh4 {[%emt 0:00:08]} Rg8 {[%emt 0:01:20]} 32. Ng5+ {[%emt 0:00:21]} Rxg5 {[%emt 0:00:18]} 33. Rxg5 {[%emt 0:00:06]} Rh6 {[%emt 0:03:34]} 34. Rxf5 {[%emt 0:01:20] normal} 1-0

[Event "GER-ch Youth ODJM 2019"]
[Site "Willingen"]
[Date "2019.06.14"]
[Round "8.8"]
[White "Andresen, Marc"]
[Black "Bartelt, Max Peter"]
[Result "1-0"]
[ECO "C05"]
[WhiteElo "1428"]
[BlackElo "1789"]
[Annotator "NA"]
[PlyCount "67"]
[EventDate "2019.06.07"]
[EventType "swiss"]
[EventRounds "9"]
[EventCountry "GER"]
[SourceTitle "playchess.com"]
[Source "ChessBase"]
[SourceQuality "1"]
[TimeControl "40/5400+30:1800+30"]

1. e4 {[%emt 0:00:00]} e6 {[%emt 0:00:00]} 2. d4 {[%emt 0:00:00]} d5 {[%emt 0:00:00]} 3. Nd2 {[%emt 0:00:00]} Nf6 {[%emt 0:00:00]} 4. e5 {[%emt 0:00:00]} Nfd7 {[%emt 0:00:00]} 5. c3 {[%emt 0:00:00]} c5 {[%emt 0:00:00]} 6. Bd3 {[%emt 0:00:00]} Nc6 {[%emt 0:00:00]} 7. Ne2 {[%emt 0:00:06]} Qb6 {[%emt 0:00:32]} 8. Nf3 {[%emt 0:00:36]} f6 {[%emt 0:00:59]} 9. exf6 {[%emt 0:00:05]} gxf6 {[%emt 0:00:05]} 10. O-O {[%emt 0:01:37]} Bd6 {[%emt 0:03:00]} 11. Re1 {[%emt 0:02:31]} Kd8 {[%emt 0:04:19]} 12. Ng3 {[%emt 0:23:04]} e5 {[%emt 0:06:34]} 13. dxe5 {[%emt 0:04:09]} fxe5 {[%emt 0:01:16]} 14. Ng5 {[%emt 0:01:38]} Kc7 {[%emt 0:08:14]} 15. Nf5 {[%emt 0:19:42]} Nd8 {[%emt 0:04:31]} 16. Nxd6 {[%emt 0:02:10]} Qxd6 {[%emt 0:00:30]} 17. Bxh7 {[%emt 0:08:50]} e4 {[%emt 0:07:56]} 18. g3 {[%emt 0:06:19]} Ne5 {[%emt 0:12:22]} 19. Bf4 {[%emt 0:01:07]} Be6 {[%emt 0:04:35]} 20. Bxe4 {[%emt 0:02:16]} Ndc6 {[%emt 0:06:51]} 21. Nxe6+ {[%emt 0:01:59]} Qxe6 {[%emt 0:00:01]} 22. Bxd5 {[%emt 0:02:36]} Qh3 {[%emt 0:00:43]} 23. Bxe5+ {[%emt 0:03:21]} Nxe5 {[%emt 0:00:05]} 24. Rxe5 {[%emt 0:00:16]} Qxh2+ {[%emt 0:00:03]} 25. Kf1 {[%emt 0:00:06]} Rad8 {[%emt 0:01:13]} 26. Qf3 {[%emt 0:01:15]} Rhf8 {[%emt 0:01:50]} 27. Qg2 {[%emt 0:01:13]} Qh7 {[%emt 0:00:19]} 28. Rae1 {[%emt 0:02:40]} Rd7 {[%emt 0:00:22]} 29. Bxb7 {[%emt 0:02:07]} Rf6 {[%emt 0:00:33]} 30. Rxc5+ {[%emt 0:01:29]} Kb6 {[%emt 0:00:18]} 31. Rc6+ {[%emt 0:00:08]} Kxb7 {[%emt 0:00:05]} 32. Rxf6+ {[%emt 0:00:06]} Kb8 {[%emt 0:00:32]} 33. Re8+ {[%emt 0:00:31]} Kc7 {[%emt 0:00:04]} 34. Qc6# {normal} 1-0